Department Family,Entity,Date,Expense Type,Expense area,Supplier,Transaction Number,Amount in Sterling �s incl VAT ,Supplier VAT Registration number
NHS,Glos Hospitals NHS Foundation Trust,30/05/2022,Finished processed goods,Inventories,Bayer,000247-33,"47,903.94", 
NHS,Glos Hospitals NHS Foundation Trust,04/05/2022,Finished processed goods,Inventories,Novartis Pharmaceuticals UK Limited,000257-2,"52,889.76", 
NHS,Glos Hospitals NHS Foundation Trust,04/05/2022,Finished processed goods,Inventories,CSL Behring UK Limited,000257-8,"49,276.00", 
NHS,Glos Hospitals NHS Foundation Trust,04/05/2022,Finished processed goods,Inventories,Roche Products Limited,000259-91,"28,291.62", 
NHS,Glos Hospitals NHS Foundation Trust,04/05/2022,Finished processed goods,Inventories,Bayer,000262-290,"32,848.42", 
NHS,Glos Hospitals NHS Foundation Trust,04/05/2022,Finished processed goods,Inventories,Bristol Myers Squibb Pharmaceuticals Limited,000262-292,"45,126.90", 
NHS,Glos Hospitals NHS Foundation Trust,04/05/2022,Finished processed goods,Inventories,Janssen Cilag Limited,000262-401,"47,692.80", 
NHS,Glos Hospitals NHS Foundation Trust,04/05/2022,Finished processed goods,Inventories,Bayer,000263-1,"45,622.80", 
NHS,Glos Hospitals NHS Foundation Trust,10/05/2022,Finished processed goods,Inventories,Jazz Pharmaceuticals,000263-34,"31,224.10", 
NHS,Glos Hospitals NHS Foundation Trust,10/05/2022,Finished processed goods,Inventories,Bayer,000263-39,"49,272.62", 
NHS,Glos Hospitals NHS Foundation Trust,10/05/2022,Finished processed goods,Inventories,Bayer,000264-9,"50,185.08", 
NHS,Glos Hospitals NHS Foundation Trust,17/05/2022,Finished processed goods,Inventories,Bayer,000265-11,"45,622.80", 
NHS,Glos Hospitals NHS Foundation Trust,17/05/2022,Finished processed goods,Inventories,Novartis Pharmaceuticals UK Limited,000265-7,"48,108.05", 
NHS,Glos Hospitals NHS Foundation Trust,10/05/2022,Finished processed goods,Inventories,Alliance Healthcare,000266-106,"69,037.80", 
NHS,Glos Hospitals NHS Foundation Trust,04/05/2022,Finished processed goods,Inventories,Alloga UK Limited,000266-165,"54,000.00", 
NHS,Glos Hospitals NHS Foundation Trust,10/05/2022,Finished processed goods,Inventories,Novartis Pharmaceuticals UK Limited,000266-53,"43,052.72", 
NHS,Glos Hospitals NHS Foundation Trust,10/05/2022,Finished processed goods,Inventories,Bristol Myers Squibb Pharmaceuticals Limited,000266-61,"45,126.90", 
NHS,Glos Hospitals NHS Foundation Trust,04/05/2022,Finished processed goods,Inventories,Roche Products Limited,000266-62,"57,849.60", 
NHS,Glos Hospitals NHS Foundation Trust,10/05/2022,Finished processed goods,Inventories,Roche Products Limited,000266-66,"58,656.00", 
NHS,Glos Hospitals NHS Foundation Trust,17/05/2022,Finished processed goods,Inventories,Roche Products Limited,000266-68,"54,990.00", 
NHS,Glos Hospitals NHS Foundation Trust,04/05/2022,Finished processed goods,Inventories,Alliance Healthcare,000266-80,"69,037.80", 
NHS,Glos Hospitals NHS Foundation Trust,04/05/2022,Finished processed goods,Inventories,Alliance Healthcare,000266-84,"25,488.00", 
NHS,Glos Hospitals NHS Foundation Trust,10/05/2022,Finished processed goods,Inventories,Aah Pharmaceuticals Limited,000267-112,"37,714.32", 
NHS,Glos Hospitals NHS Foundation Trust,17/05/2022,Finished processed goods,Inventories,Novartis Pharmaceuticals UK Limited,000268-267,"49,324.80", 
NHS,Glos Hospitals NHS Foundation Trust,17/05/2022,Finished processed goods,Inventories,Bayer,000268-272,"32,848.42", 
NHS,Glos Hospitals NHS Foundation Trust,17/05/2022,Finished processed goods,Inventories,Bristol Myers Squibb Pharmaceuticals Limited,000268-273,"45,126.90", 
NHS,Glos Hospitals NHS Foundation Trust,17/05/2022,Finished processed goods,Inventories,Roche Products Limited,000268-275,"90,995.76", 
NHS,Glos Hospitals NHS Foundation Trust,10/05/2022,Finished processed goods,Inventories,Alloga UK Limited,000268-295,"27,120.00", 
NHS,Glos Hospitals NHS Foundation Trust,17/05/2022,Finished processed goods,Inventories,Alloga UK Limited,000268-302,"27,120.00", 
NHS,Glos Hospitals NHS Foundation Trust,17/05/2022,Finished processed goods,Inventories,Janssen Cilag Limited,000271-1007,"47,692.80", 
NHS,Glos Hospitals NHS Foundation Trust,17/05/2022,Finished processed goods,Inventories,Qualasept Ltd t/a Bath ASU,000271-1008,"37,433.76", 
NHS,Glos Hospitals NHS Foundation Trust,24/05/2022,Finished processed goods,Inventories,Qualasept Ltd t/a Bath ASU,000271-1010,"74,867.52", 
NHS,Glos Hospitals NHS Foundation Trust,24/05/2022,Finished processed goods,Inventories,Octapharma Limited,000271-870,"38,700.00", 
NHS,Glos Hospitals NHS Foundation Trust,17/05/2022,Finished processed goods,Inventories,Bayer,000271-877,"32,848.42", 
NHS,Glos Hospitals NHS Foundation Trust,24/05/2022,Finished processed goods,Inventories,Bristol Myers Squibb Pharmaceuticals Limited,000271-878,"45,126.90", 
NHS,Glos Hospitals NHS Foundation Trust,24/05/2022,Finished processed goods,Inventories,Bristol Myers Squibb Pharmaceuticals Limited,000271-880,"47,160.00", 
NHS,Glos Hospitals NHS Foundation Trust,24/05/2022,Finished processed goods,Inventories,Roche Products Limited,000271-882,"28,168.08", 
NHS,Glos Hospitals NHS Foundation Trust,24/05/2022,Finished processed goods,Inventories,Roche Products Limited,000271-884,"43,764.48", 
NHS,Glos Hospitals NHS Foundation Trust,17/05/2022,Finished processed goods,Inventories,Alloga UK Limited,000271-91,"29,160.00", 
NHS,Glos Hospitals NHS Foundation Trust,24/05/2022,Finished processed goods,Inventories,Alloga UK Limited,000271-997,"45,000.00", 
NHS,Glos Hospitals NHS Foundation Trust,24/05/2022,Finished processed goods,Inventories,Bayer,000273-52,"49,272.62", 
NHS,Glos Hospitals NHS Foundation Trust,17/05/2022,Finished processed goods,Inventories,Bayer,000273-6,"45,622.80", 
NHS,Glos Hospitals NHS Foundation Trust,30/05/2022,Finished processed goods,Inventories,Qualasept Ltd t/a Bath ASU,000273-84,"37,433.76", 
NHS,Glos Hospitals NHS Foundation Trust,24/05/2022,Finished processed goods,Inventories,Alliance Healthcare,000276-71,"75,356.59", 
NHS,Glos Hospitals NHS Foundation Trust,24/05/2022,Finished processed goods,Inventories,Bayer,000277-42,"45,622.80", 
NHS,Glos Hospitals NHS Foundation Trust,30/05/2022,Finished processed goods,Inventories,Novartis Pharmaceuticals UK Limited,000278-10,"48,081.60", 
NHS,Glos Hospitals NHS Foundation Trust,30/05/2022,Finished processed goods,Inventories,CSL Behring UK Limited,000278-23,"44,196.00", 
NHS,Glos Hospitals NHS Foundation Trust,24/05/2022,Finished processed goods,Inventories,Alloga UK Limited,000281-217,"27,120.00", 
NHS,Glos Hospitals NHS Foundation Trust,30/05/2022,Finished processed goods,Inventories,Janssen Cilag Limited,000281-224,"59,628.00", 
NHS,Glos Hospitals NHS Foundation Trust,30/05/2022,Finished processed goods,Inventories,Qualasept Ltd t/a Bath ASU,000281-227,"74,867.52", 
NHS,Glos Hospitals NHS Foundation Trust,30/05/2022,Finished processed goods,Inventories,Bayer,000281-65,"49,272.62", 
NHS,Glos Hospitals NHS Foundation Trust,30/05/2022,Finished processed goods,Inventories,Roche Products Limited,000281-71,"54,990.00", 
NHS,Glos Hospitals NHS Foundation Trust,30/05/2022,Finished processed goods,Inventories,Bayer,000283-23,"45,622.80", 
NHS,Glos Hospitals NHS Foundation Trust,31/05/2022,Medical & Surgical Equipment Maintenance Contracts,Endoscopy CGH,Cantel (UK) Limited,882908,"35,170.61", 
NHS,Glos Hospitals NHS Foundation Trust,04/05/2022,Stents,Radiography,Aquilant Ltd,893079,"25,590.60", 
NHS,Glos Hospitals NHS Foundation Trust,04/05/2022,Purchase Computers/Systems,Capital Project Control,XMA Limited,894399,"49,200.44", 
NHS,Glos Hospitals NHS Foundation Trust,10/05/2022,Sal Sacrifice Car Scheme,Pay Deductions,Tusker Direct,896612,"48,993.37", 
NHS,Glos Hospitals NHS Foundation Trust,10/05/2022,Medical & Surgical Equipment Maintenance Contracts,Radiography,Supply Chain Coordination Ltd - Maint. (201),897960,"81,470.21", 
NHS,Glos Hospitals NHS Foundation Trust,04/05/2022,Other Clinical Costs,Radiography,Cobalt Health,898166,"54,740.00", 
NHS,Glos Hospitals NHS Foundation Trust,30/05/2022,Computer Software / License  Fees,Computing - CGH HQ,Insight Direct (UK) Limited,899275,"170,372.77", 
NHS,Glos Hospitals NHS Foundation Trust,04/05/2022,Laboratory Reagents,Regional CoVid-19 Testing Centre,Cepheid UK Limited,899943,"37,670.40", 
NHS,Glos Hospitals NHS Foundation Trust,17/05/2022,Contractual Clinical Services,Renal Dialysis,B Braun Avitum UK Limited,900369,"179,831.96", 
NHS,Glos Hospitals NHS Foundation Trust,10/05/2022,X-Ray Equipment : Maintenance,Radiography,Supply Chain Coordination Ltd - Maint. (201),900537,"50,560.80", 
NHS,Glos Hospitals NHS Foundation Trust,10/05/2022,X-Ray Equipment : Maintenance,Radiography,Supply Chain Coordination Ltd - Maint. (201),900538,"52,504.37", 
NHS,Glos Hospitals NHS Foundation Trust,04/05/2022,Medical & Surgical Equipment Maintenance Contracts,Radiography,Philips UK and Ireland,900975,"29,832.00", 
NHS,Glos Hospitals NHS Foundation Trust,17/05/2022,Contractual Clinical Services,Renal Dialysis,B Braun Avitum UK Limited,901506,"-179,831.96", 
NHS,Glos Hospitals NHS Foundation Trust,10/05/2022,Fresh Blood & Plasma Products,Blood Products,HA73961 NHS Blood & Transplant,901833,"45,402.19", 
NHS,Glos Hospitals NHS Foundation Trust,04/05/2022,Advertising & Staff Recruitment,Overseas Recruitment,ID Medical Group Limited,901843,"55,200.00", 
NHS,Glos Hospitals NHS Foundation Trust,04/05/2022,NHS Logistics control,Payables - Manual,Supply Chain Coordination Ltd - Consumables,902137,"220,559.27", 
NHS,Glos Hospitals NHS Foundation Trust,10/05/2022,X-Ray Equipment : Maintenance,Radiography,Supply Chain Coordination Ltd - Maint. (201),902469,"74,872.36", 
NHS,Glos Hospitals NHS Foundation Trust,04/05/2022,Computer Maintenance,Financial and Procurement Systems Management,Infor (United Kingdom) Limited,902485,"78,060.92", 
NHS,Glos Hospitals NHS Foundation Trust,10/05/2022,Implant Procedures,Cardiology Laboratory,Medtronic Limited,902557,"31,200.00", 
NHS,Glos Hospitals NHS Foundation Trust,04/05/2022,NHS Logistics control,Payables - Manual,Supply Chain Coordination Ltd - Consumables,902741,"90,446.90", 
NHS,Glos Hospitals NHS Foundation Trust,04/05/2022,Computer Network Costs,Network Infrastructure,BT Global Services,903150,"37,442.59", 
NHS,Glos Hospitals NHS Foundation Trust,24/05/2022,Computer Software / License  Fees,Communications/PR,Isotoma,903336,"25,826.40", 
NHS,Glos Hospitals NHS Foundation Trust,04/05/2022,Allocate,Payables - Manual,ID Medical Group Limited,903479,"45,082.18", 
NHS,Glos Hospitals NHS Foundation Trust,10/05/2022,Finished processed goods,Inventories,Roche Products Limited,903494,"79,088.88", 
NHS,Glos Hospitals NHS Foundation Trust,17/05/2022,Training Expenses,Recruitment Team,Royal College Of Nursing,903500,"25,920.00", 
NHS,Glos Hospitals NHS Foundation Trust,17/05/2022,Prescribing Control,Payables - Manual,HA79125 NHSBSA,903524,"102,203.45", 
NHS,Glos Hospitals NHS Foundation Trust,31/05/2022,Drugs - Passthrough Expenditure,Hereford Clinic Rental,HA95059 Wye Valley NHS Trust,903564,"416,068.00", 
NHS,Glos Hospitals NHS Foundation Trust,04/05/2022,Purchase Computers/Systems,Capital Project Control,XMA Limited,903599,"-49,200.44", 
NHS,Glos Hospitals NHS Foundation Trust,04/05/2022,Non - Healthcare - NHS Trusts,Regional CoVid-19 Testing Centre,Gloucestershire Health and Care NHS FT Pr GCS,903613,"299,696.00", 
NHS,Glos Hospitals NHS Foundation Trust,04/05/2022,Non - Healthcare - NHS Trusts,Regional CoVid-19 Testing Centre,Gloucestershire Health and Care NHS FT Pr GCS,903614,"85,313.00", 
NHS,Glos Hospitals NHS Foundation Trust,04/05/2022,Non - Healthcare - NHS Trusts,Regional CoVid-19 Testing Centre,Gloucestershire Health and Care NHS FT Pr GCS,903615,"318,334.54", 
NHS,Glos Hospitals NHS Foundation Trust,04/05/2022,Non - Healthcare - NHS Trusts,Regional CoVid-19 Testing Centre,Gloucestershire Health and Care NHS FT Pr GCS,903618,"183,600.00", 
NHS,Glos Hospitals NHS Foundation Trust,04/05/2022,X-Ray Equipment : Maintenance,General Theatre 1 - Non Pay only,Supply Chain Coordination Ltd - Maint. (201),903647,"55,791.42", 
NHS,Glos Hospitals NHS Foundation Trust,04/05/2022,Rates,Rates - CGH,Cheltenham Borough Council,903671,"90,624.00", 
NHS,Glos Hospitals NHS Foundation Trust,04/05/2022,Rates,Rates - GRH,Gloucester City Council,903676,"209,920.00", 
NHS,Glos Hospitals NHS Foundation Trust,04/05/2022,Allocate,Payables - Manual,ID Medical Group Limited,903779,"39,368.67", 
NHS,Glos Hospitals NHS Foundation Trust,04/05/2022,Purchase Computers/Systems,Capital Project Control,XMA Limited,903784,"49,293.22", 
NHS,Glos Hospitals NHS Foundation Trust,04/05/2022,External Consultancy Fees,Trustwide NR,KPMG LLP,903819,"175,800.00", 
NHS,Glos Hospitals NHS Foundation Trust,04/05/2022,Commercial Sector,Urology Robot MSE,Genmed.me Limited,903820,"1,727,255.93", 
NHS,Glos Hospitals NHS Foundation Trust,04/05/2022,Commercial Sector,Main Theatre - Non Pay only,Genmed.me Limited,903821,"1,568,296.55", 
NHS,Glos Hospitals NHS Foundation Trust,17/05/2022,Contractual Clinical Services,Renal Dialysis,B Braun Avitum UK Limited,903852,"126,988.88", 
NHS,Glos Hospitals NHS Foundation Trust,24/05/2022,Medical & Surgical Equipment Maintenance Contracts,Radiography,Supply Chain Coordination Ltd - Maint. (201),903915,"81,340.18", 
NHS,Glos Hospitals NHS Foundation Trust,17/05/2022,Fresh Blood & Plasma Products,Blood Products,HA73961 NHS Blood & Transplant,903948,"99,429.08", 
NHS,Glos Hospitals NHS Foundation Trust,17/05/2022,Fresh Blood & Plasma Products,Blood Products,HA73961 NHS Blood & Transplant,903949,"45,402.19", 
NHS,Glos Hospitals NHS Foundation Trust,17/05/2022,Fresh Blood & Plasma Products,Blood Products,HA73961 NHS Blood & Transplant,903950,"99,429.08", 
NHS,Glos Hospitals NHS Foundation Trust,31/05/2022,Drugs - Passthrough Expenditure,Hereford Clinic Rental,HA95059 Wye Valley NHS Trust,904024,"-416,068.00", 
NHS,Glos Hospitals NHS Foundation Trust,17/05/2022,Audit Fees : External,T&0 Specialty,Healthcare Quality Improvement Partnership,904060,"31,027.50", 
NHS,Glos Hospitals NHS Foundation Trust,17/05/2022,Computer Software / License  Fees,Clinical Systems,Softcat Ltd,904158,"33,882.00", 
NHS,Glos Hospitals NHS Foundation Trust,17/05/2022,Contractual Clinical Services,Cardiology Laboratory,AGITO Medical A/S,904338,"29,190.00", 
NHS,Glos Hospitals NHS Foundation Trust,10/05/2022,Computer Network Costs,Network Infrastructure,BT Global Services,904340,"38,265.58", 
NHS,Glos Hospitals NHS Foundation Trust,30/05/2022,Medical & Surgical Equipment Maintenance Contracts,Hereford LINAC,Varian Medical Systems UK Limited,904369,"180,948.00", 
NHS,Glos Hospitals NHS Foundation Trust,10/05/2022,External Contracts : Other,Radiography Consultants,Everlight Radiology,904477,"75,562.50", 
NHS,Glos Hospitals NHS Foundation Trust,10/05/2022,External Contracts : Other,Radiography,Cobalt Health,904478,"57,768.58", 
NHS,Glos Hospitals NHS Foundation Trust,10/05/2022,Sal Sacrifice Car Scheme,Pay Deductions,Tusker Direct,904600,"51,939.83", 
NHS,Glos Hospitals NHS Foundation Trust,17/05/2022,Allocate,Payables - Manual,ID Medical Group Limited,904654,"40,900.18", 
NHS,Glos Hospitals NHS Foundation Trust,24/05/2022,National QC & Accreditation Fees,RISK,Care Quality Commission,904785,"438,486.00", 
NHS,Glos Hospitals NHS Foundation Trust,17/05/2022,Admin & Clerical - Agency,CITS Cyber Team,Keystream Healthcare,904786,"66,592.73", 
NHS,Glos Hospitals NHS Foundation Trust,30/05/2022,Laboratory Reagents,Haematology / Immunology Lab trustwide - NONPAY,Beckman Coulter United Kingdom Limited,904868,"151,480.48", 
NHS,Glos Hospitals NHS Foundation Trust,17/05/2022,Finished processed goods,Inventories,Alexion Pharm UK Limited,904889,"31,168.80", 
NHS,Glos Hospitals NHS Foundation Trust,17/05/2022,Building - External Contracts,Capital Project Control,Kier Infrastructure & Overseas Limited,905156,"2,068,340.05", 
NHS,Glos Hospitals NHS Foundation Trust,17/05/2022,Other Transport Costs,Patient Transport Services GHX,E-Zec Medical Transport Services Ltd,906275,"30,650.67", 
NHS,Glos Hospitals NHS Foundation Trust,30/05/2022,Contractual Clinical Services,Ophthalmology Specialty,Glanso Ltd,906431,"25,092.78", 
NHS,Glos Hospitals NHS Foundation Trust,24/05/2022,Other Transport Costs,Corporate CoVid,Outdoor Medical Solutions,906459,"30,420.00", 
NHS,Glos Hospitals NHS Foundation Trust,24/05/2022,Sales Of Goods And Services,Pharmacy - GRH,Alloga UK Limited,906502,"-136,800.00", 
NHS,Glos Hospitals NHS Foundation Trust,24/05/2022,Contract : Other External,UC & Dividend,NHS Gloucestershire Managed Services,906521,"238,432.59", 
NHS,Glos Hospitals NHS Foundation Trust,24/05/2022,Laboratory Reagents,Microbiology - GRH,Chrystal Consulting Limited,906530,"38,364.23", 
NHS,Glos Hospitals NHS Foundation Trust,30/05/2022,Patients Appliances : Repairs,Patient Appliances,Opcare Limited,906545,"54,940.78", 
NHS,Glos Hospitals NHS Foundation Trust,30/05/2022,Computer Software / License  Fees,CITS Cyber Team,Insight Direct (UK) Limited,906573,"112,752.00", 
NHS,Glos Hospitals NHS Foundation Trust,24/05/2022,Purchase Computers/Systems,Capital Project Control,Insight Direct (UK) Limited,906585,"81,436.80", 
NHS,Glos Hospitals NHS Foundation Trust,24/05/2022,NHS Logistics control,Payables - Manual,Supply Chain Coordination Ltd - Consumables,906781,"324,635.00", 
NHS,Glos Hospitals NHS Foundation Trust,30/05/2022,NHS Logistics control,Payables - Manual,Supply Chain Coordination Ltd - Consumables,906914,"80,701.94", 
NHS,Glos Hospitals NHS Foundation Trust,24/05/2022,Contract : Other External,UC & Dividend,NHS Gloucestershire Managed Services,906991,"2,060,318.38", 
NHS,Glos Hospitals NHS Foundation Trust,31/05/2022,Medical & Surgical Equipment Maintenance Contracts,Endoscopy CGH,Cantel (UK) Limited,907227,"-35,170.61", 
NHS,Glos Hospitals NHS Foundation Trust,24/05/2022,Contract : Other External,GHP Contract,Gloucester Healthcare Partnership Limited,907265,"580,505.48", 
NHS,Glos Hospitals NHS Foundation Trust,24/05/2022,Commercial Sector,Urology Robot MSE,Genmed.me Limited,907266,"3,172,867.72", 
NHS,Glos Hospitals NHS Foundation Trust,30/05/2022,Vehicle Insurance,Trustwide Finance,Willis Limited,908035,"56,448.00", 
NHS,Glos Hospitals NHS Foundation Trust,30/05/2022,Computer Network Costs,Network Infrastructure,BT Global Services,908532,"60,348.88", 
NHS,Glos Hospitals NHS Foundation Trust,30/05/2022,Medical & Surgical Equipment : Disposable,CAPD Renal,Baxter Healthcare Limited,908661,"35,966.16", 
NHS,Glos Hospitals NHS Foundation Trust,30/05/2022,Colour Connection,Payables - Manual,Colour Connection,908666,"26,512.15", 
NHS,Glos Hospitals NHS Foundation Trust,30/05/2022,External Contracts : Other,Radiography Consultants,Everlight Radiology,908681,"81,347.50", 
NHS,Glos Hospitals NHS Foundation Trust,30/05/2022,Contract : Other External,UC & Dividend,NHS Gloucestershire Managed Services,908789,"477,946.82", 
NHS,Glos Hospitals NHS Foundation Trust,30/05/2022,Contract : Other External,UC & Dividend,NHS Gloucestershire Managed Services,908790,"1,650,271.10", 
NHS,Glos Hospitals NHS Foundation Trust,30/05/2022,Contract : Other External,UC & Dividend,NHS Gloucestershire Managed Services,908791,"737,864.03", 
NHS,Glos Hospitals NHS Foundation Trust,30/05/2022,Contract : Other External,UC & Dividend,NHS Gloucestershire Managed Services,908792,"198,801.29", 
NHS,Glos Hospitals NHS Foundation Trust,31/05/2022,Barclay Card,Payables - Manual,Barclaycard Commercial,909090,"63,080.54", 
NHS,Glos Hospitals NHS Foundation Trust,31/05/2022,Clinical Negligence,Trustwide Finance,NHS Resolution,909096,"1,937,434.70", 
